fUST/lending_fUST_20240121
["ID","MTS","AMOUNT","RATE_DAILY","PERIOD"]
[312374362,1705842641111,-500.0,0.00027397,2]
[312374363,1705842641122,-251.60887426,0.00027429,2]
[312374364,1705842641132,-251.60887426,0.0002756,2]
[312374365,1705842641143,-397.3464997,0.00027671,2]
[312374366,1705842641156,-102.6535003,0.00027671,2]
[312374367,1705842641166,-502.77,0.00027671,2]
[312374368,1705842641177,-500.0,0.00027671,2]
[312374369,1705842641188,-500.0,0.00027671,2]
[312374370,1705842641198,-675.15,0.00027671,2]
[312374371,1705842641208,-792.94,0.00027671,2]
[312374372,1705842641219,-500.0,0.00027671,2]
[312374373,1705842641230,-500.0,0.00027671,2]
[312374374,1705842641241,-500.0,0.00027671,2]
[312374375,1705842641251,-500.0,0.00027671,2]
[312374376,1705842641262,-500.0,0.00027671,2]
[312374377,1705842641273,-810.04,0.00027671,2]
[312374378,1705842641284,-500.0,0.00027671,2]
[312374379,1705842641295,-500.0,0.00027671,2]
[312374380,1705842641306,-500.0,0.00027671,2]
[312374381,1705842641315,-500.0,0.00027671,2]
[312374382,1705842641324,-500.0,0.00027671,2]
[312374383,1705842641334,-500.0,0.00027671,2]
[312374384,1705842641343,-500.0,0.00027671,2]
[312374385,1705842641352,-85.89439962,0.00027671,2]
[312374458,1705842644105,-500.0,0.00027397,2]
[312374459,1705842644114,-469.10621555,0.00027397,2]
[312374493,1705842689476,200.0,0.00030136,15]
[312374498,1705842989586,200.0,0.00030134,15]
[312374499,1705843104757,8.39727077,0.00027397,14]
[312374500,1705843104780,491.60272923,0.00027397,14]
[312374502,1705843289430,200.0,0.00030134,15]
[312374504,1705843570258,2926.26840009,0.00031,10]
[312374505,1705843589406,200.0,0.00030134,15]
[312374588,1705843838050,-154.73694719,0.00025196,4]
[312374590,1705843838061,-200.69340064,0.00025197,2]
[312374592,1705843838072,-559.22284963,0.00025297,2]
[312374594,1705843838082,-166.666666,0.00025892,2]
[312374596,1705843838092,-620.0472828,0.00027212,2]
[312374598,1705843838102,-200.69340064,0.00027287,2]
[312374600,1705843838111,-527.10378265,0.00027296,2]
[312374602,1705843838120,-167.73924952,0.00027297,2]
[312374604,1705843838130,-2101.89,0.00027387,3]
[312374606,1705843838139,-1751.57,0.00027387,3]
[312374608,1705843838149,-1197.36998484,0.00027387,3]
[312374610,1705843838162,-262.27001516,0.00027387,3]
[312374612,1705843838171,-155.00564651,0.00027395,2]
[312374614,1705843838180,-8294.83576443,0.00027396,2]
[312374616,1705843838189,-510.43,0.00027397,2]
[312374618,1705843838198,-500.0,0.00027397,2]
[312374620,1705843838209,-500.0,0.00027397,2]
[312374622,1705843838218,-500.0,0.00027397,2]
[312374624,1705843838227,-500.0,0.00027397,2]
[312374626,1705843838237,-500.0,0.00027397,2]
[312374628,1705843838246,-500.0,0.00027397,2]
[312374630,1705843838255,-500.0,0.00027397,2]
[312374632,1705843838264,-611.2104419,0.00027397,2]
[312374634,1705843838273,-500.0,0.00027397,2]
[312374636,1705843838282,-500.0,0.00027397,2]
[312374638,1705843838291,-500.0,0.00027397,2]
[312374640,1705843838300,-500.0,0.00027397,2]
[312374642,1705843838310,-500.0,0.00027397,2]
[312374644,1705843838319,-487.46844157,0.00027397,2]
[312374646,1705843838328,-918.35,0.00027397,2]
[312374648,1705843838337,-500.0,0.00027397,2]
[312374650,1705843838346,-500.0,0.00027397,2]
[312374652,1705843838355,-602.55421937,0.00027397,2]
[312374654,1705843838364,-500.0,0.00027397,2]
[312374656,1705843838373,-470.11053392,0.00027397,2]
[312374658,1705843838382,-500.0,0.00027397,2]
[312374660,1705843838390,-166.04810251,0.00027397,2]
[312374662,1705843838400,-500.0,0.00027397,2]
[312374664,1705843838409,-500.0,0.00027397,2]
[312374666,1705843838418,-500.0,0.00027397,2]
[312374668,1705843838427,-500.0,0.00027397,2]
[312374670,1705843838437,-500.0,0.00027397,2]
[312374672,1705843838447,-500.0,0.00027397,2]
[312374674,1705843838455,-500.0,0.00027397,2]
[312374676,1705843838464,-264.95436208,0.00027397,2]
[312374678,1705843838473,-500.0,0.00027397,2]
[312374680,1705843838483,-500.0,0.00027397,2]
[312374682,1705843838492,-500.0,0.00027397,2]
[312374684,1705843838501,-500.0,0.00027397,2]
[312374686,1705843838511,-500.0,0.00027397,2]
[312374688,1705843838520,-500.0,0.00027397,2]
[312374690,1705843838529,-1000.0,0.00027397,2]
[312374692,1705843838538,-163.9763583,0.00027397,2]
[312374694,1705843838547,-500.0,0.00027397,2]
[312374696,1705843838556,-560.37,0.00027397,2]
[312374698,1705843838565,-562.18289827,0.00027397,2]
[312374700,1705843838574,-500.0,0.00027397,2]
[312374702,1705843838583,-584.58,0.00027397,2]
[312374704,1705843838592,-500.0,0.00027397,2]
[312374706,1705843838601,-387.91365375,0.00027397,2]
[312374707,1705843838610,-500.0,0.00027397,2]
[312374710,1705843838619,-500.0,0.00027397,2]
[312374712,1705843838629,-500.0,0.00027397,2]
[312374714,1705843838640,-500.0,0.00027397,2]
[312374716,1705843838649,-500.0,0.00027397,2]
[312374717,1705843838659,-1030.93,0.00027397,2]
[312374719,1705843838668,-219.39829432,0.00027397,2]
[312374721,1705843838677,-500.0,0.00027397,2]
[312374723,1705843838687,-500.0,0.00027397,2]
[312374726,1705843838697,-523.01,0.00027397,2]
[312374728,1705843838707,-500.0,0.00027397,2]
[312374730,1705843838716,-500.0,0.00027397,2]
[312374731,1705843838725,-502.89,0.00027397,2]
[312374732,1705843838736,-500.0,0.00027397,2]
[312374733,1705843838745,-500.0,0.00027397,2]
[312374734,1705843838754,-500.0,0.00027397,2]
[312374735,1705843838762,-500.0,0.00027397,2]
[312374736,1705843838771,-500.0,0.00027397,2]
[312374737,1705843838780,-500.0,0.00027397,2]
[312374738,1705843838789,-500.0,0.00027397,2]
[312374739,1705843838797,-500.0,0.00027397,2]
[312374740,1705843838806,-500.0,0.00027397,2]
[312374741,1705843838814,-500.0,0.00027397,2]
[312374742,1705843838823,-919.42,0.00027397,2]
[312374743,1705843838832,-935.59,0.00027397,2]
[312374744,1705843838840,-464.02860065,0.00027397,2]
[312374745,1705843838850,-500.0,0.00027397,2]
[312374747,1705843838859,-591.92,0.00027397,2]
[312374749,1705843838868,-500.0,0.00027397,2]
[312374751,1705843838877,-500.0,0.00027397,2]
[312374753,1705843838886,-512.02,0.00027397,2]
[312374755,1705843838895,-500.0,0.00027397,2]
[312374757,1705843838904,-500.0,0.00027397,2]
[312374759,1705843838912,-500.0,0.00027397,2]
[312374761,1705843838921,-204.20940266,0.00027397,2]
[312374763,1705843838930,-500.0,0.00027397,2]
[312374765,1705843838939,-500.0,0.00027397,2]
[312374767,1705843838948,-500.0,0.00027397,2]
[312374769,1705843838957,-500.0,0.00027397,2]
[312374771,1705843838966,-500.0,0.00027397,2]
[312374773,1705843838975,-500.0,0.00027397,2]
[312374775,1705843838984,-500.0,0.00027397,2]
[312374777,1705843838993,-500.0,0.00027397,2]
[312374779,1705843839002,-653.14,0.00027397,2]
[312374781,1705843839013,-500.0,0.00027397,2]
[312374783,1705843839022,-500.0,0.00027397,2]
[312374785,1705843839031,-500.0,0.00027397,2]
[312374787,1705843839040,-500.0,0.00027397,2]
[312374798,1705843839180,-500.0,0.00027397,2]
[312374799,1705843839190,-500.0,0.00027397,2]
[312374800,1705843839200,-500.0,0.00027397,2]
[312374801,1705843839209,-500.0,0.00027397,2]
[312374802,1705843839218,-500.0,0.00027397,2]
[312374803,1705843839228,-1000.0,0.00027397,2]
[312374804,1705843839237,-500.0,0.00027397,2]
[312374805,1705843839246,-500.0,0.00027397,2]
[312374806,1705843839255,-644.34,0.00027397,2]
[312374807,1705843839264,-500.0,0.00027397,2]
[312374808,1705843839273,-509.29,0.00027397,2]
[312374809,1705843839281,-500.0,0.00027397,2]
[312374810,1705843839290,-1930.7,0.00027397,2]
[312374811,1705843839299,-500.0,0.00027397,2]
[312374812,1705843839308,-514.32,0.00027397,2]
[312374813,1705843839317,-500.0,0.00027397,2]
[312374814,1705843839327,-500.0,0.00027397,2]
[312374815,1705843839336,-500.0,0.00027397,2]
[312374816,1705843839344,-500.0,0.00027397,2]
[312374818,1705843839353,-500.0,0.00027397,2]
[312374819,1705843839362,-500.0,0.00027397,2]
[312374820,1705843839371,-500.0,0.00027397,2]
[312374821,1705843839381,-500.0,0.00027397,2]
[312374822,1705843839389,-155.0,0.00027397,2]
[312374823,1705843839399,-500.0,0.00027397,2]
[312374825,1705843839407,-530.89378445,0.00027397,2]
[312374827,1705843839416,-500.0,0.00027397,2]
[312374828,1705843839425,-500.0,0.00027397,2]
[312374830,1705843839434,-1315.76,0.00027397,2]
[312374831,1705843839443,-500.0,0.00027397,2]
[312374832,1705843839452,-500.0,0.00027397,2]
[312374833,1705843839462,-653.74,0.00027397,2]
[312374834,1705843839470,-500.0,0.00027397,2]
[312374835,1705843839479,-500.0,0.00027397,2]
[312374836,1705843839488,-500.96434093,0.00027397,2]
[312374837,1705843839497,-552.04,0.00027397,2]
[312374838,1705843839506,-500.0,0.00027397,2]
[312374839,1705843839515,-676.45,0.00027397,2]
[312374840,1705843839524,-537.13772058,0.00027397,2]
[312374841,1705843839533,-261.70582474,0.00027397,2]
[312374842,1705843839542,-592.13,0.00027397,2]
[312374843,1705843839551,-500.0,0.00027397,2]
[312374844,1705843839560,-500.0,0.00027397,2]
[312374845,1705843839569,-500.0,0.00027397,2]
[312374846,1705843839578,-500.0,0.00027397,2]
[312374847,1705843839587,-669.98,0.00027397,2]
[312374848,1705843839596,-1728.69,0.00027397,2]
[312374850,1705843839605,-19709.68,0.00027397,2]
[312374851,1705843839615,-4968.67,0.00027397,2]
[312374852,1705843839625,-635.09409902,0.00027397,2]
[312374854,1705843839634,-583.48,0.00027397,2]
[312374855,1705843839643,-724.27,0.00027397,2]
[312374857,1705843839653,-500.0,0.00027397,2]
[312374858,1705843839662,-758.85,0.00027397,2]
[312374860,1705843839671,-500.0,0.00027397,2]
[312374862,1705843839681,-500.0,0.00027397,2]
[312374863,1705843839690,-2227.13,0.00027397,2]
[312374864,1705843839700,-500.0,0.00027397,2]
[312374865,1705843839709,-1647.72,0.00027397,2]
[312374867,1705843839719,-500.0,0.00027397,2]
[312374868,1705843839728,-500.0,0.00027397,2]
[312374870,1705843839738,-500.17407216,0.00027397,2]
[312374871,1705843839747,-500.0,0.00027397,2]
[312374872,1705843839756,-1175.1,0.00027397,2]
[312374874,1705843839766,-500.0,0.00027397,2]
[312374876,1705843839775,-500.0,0.00027397,2]
[312374877,1705843839783,-500.0,0.00027397,2]
[312374879,1705843839793,-171.16187186,0.00027397,2]
[312374880,1705843839802,-500.0,0.00027397,2]
[312374881,1705843839811,-11651.48,0.00027397,2]
[312374882,1705843839820,-500.0,0.00027397,2]
[312374883,1705843839829,-500.0,0.00027397,2]
[312374884,1705843839838,-1101.68,0.00027397,2]
[312374885,1705843839847,-500.0,0.00027397,2]
[312374886,1705843839856,-221.60056194,0.00027397,2]
[312374887,1705843839865,-829.85,0.00027397,2]
[312374888,1705843839874,-1051.55,0.00027397,2]
[312374889,1705843839883,-500.0,0.00027397,2]
[312374890,1705843839892,-500.0,0.00027397,2]
[312374891,1705843839900,-969.11,0.00027397,2]
[312374892,1705843839909,-7487.62,0.00027397,2]
[312374893,1705843839919,-1065.06,0.00027397,2]
[312374894,1705843839927,-884.65,0.00027397,2]
[312374895,1705843839936,-7721.06,0.00027397,2]
[312374896,1705843839944,-5009.72,0.00027397,2]
[312374897,1705843839954,-500.0,0.00027397,2]
[312374898,1705843839964,-6629.0,0.00027397,2]
[312374899,1705843839973,-500.0,0.00027397,2]
[312374900,1705843839983,-869.18,0.00027397,2]
[312374901,1705843839992,-2609.33,0.00027397,2]
[312374902,1705843840002,-1838.99,0.00027397,2]
[312374904,1705843840011,-500.0,0.00027397,2]
[312374905,1705843840020,-500.0,0.00027397,2]
[312374907,1705843840029,-1612.37,0.00027397,2]
[312374909,1705843840039,-500.0,0.00027397,2]
[312374910,1705843840049,-500.0,0.00027397,2]
[312374911,1705843840058,-3556.8,0.00027397,2]
[312374913,1705843840070,-500.0,0.00027397,2]
[312374915,1705843840079,-578.89876639,0.00027397,2]
[312374916,1705843840088,-500.0,0.00027397,2]
[312374917,1705843840097,-500.0,0.00027397,2]
[312374918,1705843840107,-500.0,0.00027397,2]
[312374919,1705843840116,-1757.55,0.00027397,2]
[312374920,1705843840126,-500.19381526,0.00027397,2]
[312374921,1705843840135,-250.97839217,0.00027397,2]
[312374922,1705843840145,-500.0,0.00027397,2]
[312374923,1705843840155,-1195.25,0.00027397,2]
[312374924,1705843840165,-500.0,0.00027397,2]
[312374925,1705843840174,-851.08,0.00027397,2]
[312374926,1705843840183,-500.0,0.00027397,2]
[312374927,1705843840192,-1437.81,0.00027397,2]
[312374928,1705843840201,-500.0,0.00027397,2]
[312374929,1705843840211,-2374.79,0.00027397,2]
[312374930,1705843840219,-500.0,0.00027397,2]
[312374931,1705843840228,-500.0,0.00027397,2]
[312374932,1705843840238,-500.0,0.00027397,2]
[312374933,1705843840247,-500.0,0.00027397,2]
[312374934,1705843840256,-500.0,0.00027397,2]
[312374935,1705843840265,-500.0,0.00027397,2]
[312374936,1705843840274,-500.0,0.00027397,2]
[312374937,1705843840284,-500.0,0.00027397,2]
[312374938,1705843840293,-500.0,0.00027397,2]
[312374939,1705843840302,-500.0,0.00027397,2]
[312374940,1705843840311,-500.0,0.00027397,2]
[312374941,1705843840320,-500.0,0.00027397,2]
[312374942,1705843840329,-167.7392495,0.00027561,2]
[312374943,1705843840338,-276000.0,0.00027571,2]
[312374944,1705843840347,-510.43,0.00027671,2]
[312374945,1705843840356,-638.48739459,0.00027671,2]
[312374946,1705843840366,-500.0,0.00027671,2]
[312374947,1705843840375,-500.0,0.00027671,2]
[312374948,1705843840384,-500.0,0.00027671,2]
[312374949,1705843840393,-500.0,0.00027671,2]
[312374950,1705843840402,-500.0,0.00027671,2]
[312374951,1705843840412,-511.9404377,0.00027671,2]
[312374952,1705843840421,-500.0,0.00027671,2]
[312374953,1705843840430,-918.35,0.00027671,2]
[312374954,1705843840439,-500.0,0.00027671,2]
[312374955,1705843840448,-500.0,0.00027671,2]
[312374956,1705843840458,-500.0,0.00027671,2]
[312374957,1705843840467,-500.0,0.00027671,2]
[312374958,1705843840476,-500.0,0.00027671,2]
[312374959,1705843840485,-500.0,0.00027671,2]
[312374960,1705843840494,-500.0,0.00027671,2]
[312374961,1705843840503,-504.1339505,0.00027671,2]
[312374962,1705843840513,-500.0,0.00027671,2]
[312374963,1705843840522,-500.0,0.00027671,2]
[312374964,1705843840532,-500.0,0.00027671,2]
[312374965,1705843840541,-500.0723576,0.00027671,2]
[312374966,1705843840550,-500.0,0.00027671,2]
[312374967,1705843840559,-500.0,0.00027671,2]
[312374968,1705843840568,-560.37,0.00027671,2]
[312374969,1705843840577,-584.58,0.00027671,2]
[312374970,1705843840586,-500.0,0.00027671,2]
[312374971,1705843840596,-500.0,0.00027671,2]
[312374972,1705843840605,-500.0,0.00027671,2]
[312374973,1705843840614,-500.0,0.00027671,2]
[312374974,1705843840623,-824.25368685,0.00027671,2]
[312374975,1705843840639,-206.67631315,0.00027671,2]
[312374976,1705843840649,-500.0,0.00027671,2]
[312374977,1705843840658,-500.0,0.00027671,2]
[312374978,1705843840667,-523.01,0.00027671,2]
[312374979,1705843840677,-500.0,0.00027671,2]
[312374980,1705843840687,-500.0,0.00027671,2]
[312374981,1705843840697,-502.89,0.00027671,2]
[312374983,1705843840706,-569.04895563,0.00027671,2]
[312374985,1705843840716,-500.0,0.00027671,2]
[312374987,1705843840725,-427.5739377,0.00027671,2]
[312374988,1705843840734,-500.0,0.00027671,2]
[312374989,1705843840743,-500.0,0.00027671,2]
[312374990,1705843840752,-500.0,0.00027671,2]
[312374991,1705843840761,-500.0,0.00027671,2]
[312374992,1705843840771,-500.0,0.00027671,2]
[312374993,1705843840780,-500.0,0.00027671,2]
[312374994,1705843840790,-919.42,0.00027671,2]
[312374995,1705843840799,-935.59,0.00027671,2]
[312374996,1705843840807,-500.0,0.00027671,2]
[312374997,1705843840817,-591.92,0.00027671,2]
[312374998,1705843840826,-500.0,0.00027671,2]
[312374999,1705843840836,-512.02,0.00027671,2]
[312375000,1705843840845,-500.0,0.00027671,2]
[312375001,1705843840855,-500.0,0.00027671,2]
[312375002,1705843840864,-500.0,0.00027671,2]
[312375003,1705843840873,-500.0,0.00027671,2]
[312375004,1705843840882,-500.0,0.00027671,2]
[312375005,1705843840892,-607.21258544,0.00027671,2]
[312375006,1705843840901,-594.84353903,0.00027671,2]
[312375007,1705843840910,-500.0,0.00027671,2]
[312375008,1705843840919,-500.0,0.00027671,2]
[312375009,1705843840929,-500.0,0.00027671,2]
[312375010,1705843840938,-653.14,0.00027671,2]
[312375011,1705843840947,-500.0,0.00027671,2]
[312375012,1705843840956,-500.0,0.00027671,2]
[312375013,1705843840965,-500.0,0.00027671,2]
[312375014,1705843840974,-500.0,0.00027671,2]
[312375016,1705843840984,-500.0,0.00027671,2]
[312375017,1705843840994,-500.0,0.00027671,2]
[312375019,1705843841003,-500.0,0.00027671,2]
[312375020,1705843841012,-500.0,0.00027671,2]
[312375021,1705843841021,-1000.0,0.00027671,2]
[312375022,1705843841030,-500.0,0.00027671,2]
[312375024,1705843841040,-500.0,0.00027671,2]
[312375025,1705843841049,-644.34,0.00027671,2]
[312375026,1705843841059,-500.0,0.00027671,2]
[312375028,1705843841071,-509.29,0.00027671,2]
[312375029,1705843841080,-500.0,0.00027671,2]
[312375031,1705843841089,-1930.7,0.00027671,2]
[312375032,1705843841098,-500.0,0.00027671,2]
[312375033,1705843841108,-514.32,0.00027671,2]
[312375034,1705843841118,-500.0,0.00027671,2]
[312375035,1705843841126,-500.0,0.00027671,2]
[312375036,1705843841136,-500.0,0.00027671,2]
[312375037,1705843841146,-500.0,0.00027671,2]
[312375038,1705843841155,-500.0,0.00027671,2]
[312375039,1705843841164,-500.0,0.00027671,2]
[312375040,1705843841174,-500.0,0.00027671,2]
[312375041,1705843841185,-500.0,0.00027671,2]
[312375042,1705843841194,-500.0,0.00027671,2]
[312375043,1705843841204,-500.0,0.00027671,2]
[312375044,1705843841215,-1315.76,0.00027671,2]
[312375045,1705843841223,-500.0,0.00027671,2]
[312375046,1705843841233,-653.74,0.00027671,2]
[312375047,1705843841242,-500.0,0.00027671,2]
[312375048,1705843841251,-500.0,0.00027671,2]
[312375049,1705843841260,-552.04,0.00027671,2]
[312375050,1705843841269,-676.45,0.00027671,2]
[312375051,1705843841279,-592.13,0.00027671,2]
[312375052,1705843841288,-161.90922451,0.00027671,2]
[312375053,1705843841296,-500.0,0.00027671,2]
[312375054,1705843841305,-500.0,0.00027671,2]
[312375055,1705843841314,-669.98,0.00027671,2]
[312375056,1705843841323,-1728.69,0.00027671,2]
[312375058,1705843841333,-19709.68,0.00027671,2]
[312375059,1705843841342,-4968.67,0.00027671,2]
[312375060,1705843841351,-583.48,0.00027671,2]
[312375061,1705843841360,-724.27,0.00027671,2]
[312375062,1705843841369,-500.0,0.00027671,2]
[312375063,1705843841379,-758.85,0.00027671,2]
[312375064,1705843841388,-500.0,0.00027671,2]
[312375065,1705843841397,-500.0,0.00027671,2]
[312375066,1705843841407,-2227.13,0.00027671,2]
[312375067,1705843841416,-1647.72,0.00027671,2]
[312375068,1705843841426,-500.0,0.00027671,2]
[312375069,1705843841435,-500.0,0.00027671,2]
[312375070,1705843841444,-500.0,0.00027671,2]
[312375071,1705843841454,-1175.1,0.00027671,2]
[312375072,1705843841465,-500.0,0.00027671,2]
[312375073,1705843841474,-500.0,0.00027671,2]
[312375074,1705843841484,-580.5625675,0.00027671,2]
[312375075,1705843841493,-11651.48,0.00027671,2]
[312375076,1705843841503,-423.02517394,0.00027671,2]
[312375077,1705843841511,-500.0,0.00027671,2]
[312375078,1705843841522,-1101.68,0.00027671,2]
[312375079,1705843841531,-500.0,0.00027671,2]
[312375080,1705843841540,-829.85,0.00027671,2]
[312375081,1705843841549,-1051.55,0.00027671,2]
[312375082,1705843841558,-500.0,0.00027671,2]
[312375083,1705843841567,-500.0,0.00027671,2]
[312375084,1705843841577,-969.11,0.00027671,2]
[312375085,1705843841587,-7487.62,0.00027671,2]
[312375086,1705843841596,-1065.06,0.00027671,2]
[312375087,1705843841605,-884.65,0.00027671,2]
[312375088,1705843841614,-7721.06,0.00027671,2]
[312375089,1705843841624,-5009.72,0.00027671,2]
[312375090,1705843841633,-500.0,0.00027671,2]
[312375091,1705843841643,-6629.0,0.00027671,2]
[312375092,1705843841652,-500.0,0.00027671,2]
[312375093,1705843841662,-869.18,0.00027671,2]
[312375094,1705843841671,-2609.33,0.00027671,2]
[312375095,1705843841680,-1838.99,0.00027671,2]
[312375096,1705843841690,-500.0,0.00027671,2]
[312375097,1705843841699,-1612.37,0.00027671,2]
[312375098,1705843841711,-3556.8,0.00027671,2]
[312375099,1705843841720,-500.0,0.00027671,2]
[312375100,1705843841730,-500.0,0.00027671,2]
[312375101,1705843841739,-1757.55,0.00027671,2]
[312375102,1705843841749,-500.0,0.00027671,2]
[312375103,1705843841758,-1195.25,0.00027671,2]
[312375104,1705843841767,-500.0,0.00027671,2]
[312375105,1705843841776,-851.08,0.00027671,2]
[312375106,1705843841785,-500.0,0.00027671,2]
[312375107,1705843841794,-1437.81,0.00027671,2]
[312375108,1705843841804,-2374.79,0.00027671,2]
[312375109,1705843841813,-500.0,0.00027671,2]
[312375110,1705843841822,-500.0,0.00027671,2]
[312375111,1705843841831,-500.0,0.00027671,2]
[312375112,1705843841842,-500.0,0.00027671,2]
[312375113,1705843841851,-500.0,0.00027671,2]
[312375114,1705843841860,-500.0,0.00027671,2]
[312375115,1705843841869,-500.0,0.00027671,2]
[312375116,1705843841879,-500.0,0.00027671,2]
[312375117,1705843841889,-563.13250472,0.00027671,2]
[312375118,1705843841899,-500.0,0.00027671,2]
[312375119,1705843841909,-167.7392495,0.00027824,2]
[312375120,1705843842023,-2570.40235557,0.00027923,2]
[312375121,1705843842033,-500.0,0.00027923,2]
[312375122,1705843842044,-597.53715453,0.00027923,2]
[312375123,1705843842053,-500.0,0.00027923,2]
[312375124,1705843842066,-496.4743012,0.00027923,2]
[312375125,1705843842077,-500.0,0.00027923,2]
[312375126,1705843842088,-500.0,0.00027923,2]
[312375127,1705843842098,-500.0,0.00027923,2]
[312375128,1705843842109,-543.38197773,0.00027923,2]
[312375129,1705843842118,-500.0,0.00027923,2]
[312375130,1705843842128,-442.11644239,0.00027923,2]
[312375131,1705843842138,-500.0,0.00027923,2]
[312375132,1705843842149,-500.0,0.00027923,2]
[312375133,1705843842159,-500.0,0.00027923,2]
[312375134,1705843842169,-500.0,0.00027923,2]
[312375135,1705843842178,-500.0,0.00027923,2]
[312375136,1705843842187,-500.0,0.00027923,2]
[312375137,1705843842197,-500.0,0.00027923,2]
[312375138,1705843842206,-500.0,0.00027923,2]
[312375139,1705843842216,-500.0,0.00027923,2]
[312375140,1705843842225,-500.0,0.00027923,2]
[312375141,1705843842236,-500.0,0.00027923,2]
[312375142,1705843842247,-541.04438939,0.00027923,2]
[312375143,1705843842257,-500.0,0.00027923,2]
[312375144,1705843842266,-500.0,0.00027923,2]
[312375145,1705843842277,-611.78687994,0.00027923,2]
[312375146,1705843842287,-500.0,0.00027923,2]
[312375147,1705843842298,-500.0,0.00027923,2]
[312375148,1705843842307,-500.0,0.00027923,2]
[312375149,1705843842316,-500.0,0.00027923,2]
[312375150,1705843842326,-500.0,0.00027923,2]
[312375151,1705843842336,-7142.66797964,0.00027924,5]
[312375161,1705843842512,-500.0,0.00027397,2]
[312375163,1705843842521,-18219.53449695,0.00027924,5]
[312375165,1705843842532,-15237.95710868,0.00027924,5]
[312375169,1705843842555,-10180.28660809,0.00027924,5]
[312375202,1705843842993,-500.0,0.00027397,2]
[312375204,1705843843003,-452.8,0.00027671,2]
[312375205,1705843843011,-729.51141032,0.00027924,5]
[312375207,1705843843022,-5687.6929109,0.00027924,5]
[312375210,1705843843050,-4838.79827318,0.00027924,5]
[312375212,1705843843060,-5000.0,0.00027924,5]
[312375213,1705843843070,-4330.93649074,0.00027924,5]
[312375249,1705843846034,-500.0,0.00027397,2]
[312375250,1705843846043,-500.0,0.00027397,2]
[312375251,1705843846053,-420.67085076,0.00027671,2]
[312375252,1705843889815,200.0,0.00030136,15]
[312375260,1705844081955,44870.12887068,0.00030136,14]
[312375278,1705844261897,154.73694719,0.0002352,4]
[312375279,1705844279905,154.73694719,0.00022058,4]
[312375280,1705844295919,154.73694719,0.00022058,4]
[312375281,1705844320054,154.73694719,0.00021162,4]
[312375282,1705844335911,154.73694719,0.00021162,4]
[312375283,1705844349915,154.73694719,0.00021162,4]
[312375284,1705844367551,-8002.79748155,0.00022054,2]
[312375285,1705844367574,-3485.08832391,0.00022054,2]
[312375286,1705844367597,-711.64153599,0.00022054,2]
[312375287,1705844367618,-154.73694719,0.00022055,2]
[312375288,1705844367638,-1602.84826341,0.00022055,2]
[312375289,1705844367658,-191.37607433,0.00022055,2]
[312375290,1705844367678,-2814.61840706,0.00022055,2]
[312375291,1705844367699,-1993.11428292,0.00022056,2]
[312375292,1705844367719,-262.2850779,0.00022056,2]
[312375293,1705844367739,-15217.05988375,0.00022056,2]
[312375294,1705844367758,-1242.31465176,0.00022057,2]